[Event "Titled Tuesday Blitz January 10 Early 2023"]
[White "Bilan, Danila"]
[Black "Jimenez, Joaquin"]
[WhiteFideId "24161918"]
[BlackFideId "109860"]
[WhiteElo "2303"]
[BlackElo "2195"]
[Result "1-0"]
[Round "07"]
[TimeControl "180+2"]
[Date "2023.01.10"]
[WhiteClock "0:00:11"]
[BlackClock "0:01:19"]

1. d4 {[%clk 0:03:00]}  Nf6 {[%clk 0:02:59]} 2. Nf3 {[%clk 0:02:59]}  g6 {[%clk 0:02:59]} 3. Bg5 {[%clk 0:02:59]}  Bg7 {[%clk 0:02:59]} 4. c3 {[%clk 0:02:59]}  O-O {[%clk 0:02:58]} 5. Nbd2 {[%clk 0:03:00]}  d5 {[%clk 0:02:58]} 6. e3 {[%clk 0:03:00]}  c5 {[%clk 0:02:58]} 7. Bd3 {[%clk 0:03:00]}  Nc6 {[%clk 0:02:57]} 8. O-O {[%clk 0:03:00]}  cxd4 {[%clk 0:02:54]} 9. exd4 {[%clk 0:02:59]}  Bg4 {[%clk 0:02:54]} 10. h3 {[%clk 0:02:59]}  Be6 {[%clk 0:02:54]} 11. Re1 {[%clk 0:02:50]}  Qd7 {[%clk 0:02:54]} 12. Nb3 {[%clk 0:02:44]}  b6 {[%clk 0:02:53]} 13. Bb5 {[%clk 0:02:40]}  Rac8 {[%clk 0:02:53]} 14. Ne5 {[%clk 0:02:39]}  Qb7 {[%clk 0:02:50]} 15. Nxc6 {[%clk 0:02:36]}  Rxc6 {[%clk 0:02:50]} 16. Bxc6 {[%clk 0:02:36]}  Qxc6 {[%clk 0:02:50]} 17. Nd2 {[%clk 0:02:28]}  Qd7 {[%clk 0:02:45]} 18. Qe2 {[%clk 0:02:16]}  Re8 {[%clk 0:02:43]} 19. Bxf6 {[%clk 0:01:59]}  Bxf6 {[%clk 0:02:42]} 20. Nf3 {[%clk 0:01:59]}  Bf5 {[%clk 0:02:40]} 21. Ne5 {[%clk 0:01:55]}  Qc7 {[%clk 0:02:38]} 22. Qb5 {[%clk 0:01:49]}  Rd8 {[%clk 0:02:34]} 23. Re2 {[%clk 0:01:45]}  Be4 {[%clk 0:02:33]} 24. Rae1 {[%clk 0:01:42]}  Kg7 {[%clk 0:02:29]} 25. f3 {[%clk 0:01:27]}  Bf5 {[%clk 0:02:27]} 26. Ng4 {[%clk 0:01:00]}  Bh4 {[%clk 0:02:22]} 27. Rf1 {[%clk 0:00:45]}  Qg3 {[%clk 0:02:15]} 28. Ne3 {[%clk 0:00:34]}  Bxh3 {[%clk 0:02:11]} 29. f4 {[%clk 0:00:25]}  Bg4 {[%clk 0:02:02]} 30. Nxg4 {[%clk 0:00:24]}  Qxg4 {[%clk 0:02:02]} 31. Rf3 {[%clk 0:00:22]}  Bg3 {[%clk 0:02:01]} 32. Qd3 {[%clk 0:00:16]}  Bxf4 {[%clk 0:01:57]} 33. Rxe7 {[%clk 0:00:16]}  g5 {[%clk 0:01:51]} 34. Qe2 {[%clk 0:00:14]}  Qf5 {[%clk 0:01:38]} 35. Re5 {[%clk 0:00:12]}  Qg6 {[%clk 0:01:38]} 36. Re7 {[%clk 0:00:09]}  Rd6 {[%clk 0:01:35]} 37. g3 {[%clk 0:00:04]}  Bc1 {[%clk 0:01:25]} 38. Rfxf7+ {[%clk 0:00:05]}  Qxf7 {[%clk 0:01:25]} 39. Rxf7+ {[%clk 0:00:05]}  Kxf7 {[%clk 0:01:25]} 40. Qf1+ {[%clk 0:00:06]}  Rf6 {[%clk 0:01:25]} 41. Qxc1 {[%clk 0:00:07]}  Kg6 {[%clk 0:01:24]} 42. Qc2+ {[%clk 0:00:07]}  Kh6 {[%clk 0:01:23]} 43. Qg2 {[%clk 0:00:08]}  Rf5 {[%clk 0:01:22]} 44. Qh3+ {[%clk 0:00:08]}  Kg6 {[%clk 0:01:22]} 45. Kg2 {[%clk 0:00:08]}  h5 {[%clk 0:01:21]} 46. Qh1 {[%clk 0:00:08]}  g4 {[%clk 0:01:20]} 47. Qb1 {[%clk 0:00:08]}  Kg5 {[%clk 0:01:20]} 48. Qc1+ {[%clk 0:00:08]}  Kg6 {[%clk 0:01:20]} 49. Qc2 {[%clk 0:00:09]}  Kg5 {[%clk 0:01:20]} 50. Qd2+ {[%clk 0:00:09]}  Kg6 {[%clk 0:01:20]} 51. Qd3 {[%clk 0:00:10]}  Kg5 {[%clk 0:01:20]} 52. Qe3+ {[%clk 0:00:11]}  Kg6 {[%clk 0:01:20]} 53. Qe6+ {[%clk 0:00:11]}  Kg5 {[%clk 0:01:21]} 54. Qe7+ {[%clk 0:00:11]}  Kg6 {[%clk 0:01:21]} 55. Qxa7 {[%clk 0:00:12]}  Kg5 {[%clk 0:01:21]} 56. Qxb6 {[%clk 0:00:12]}  Rf3 {[%clk 0:01:19]} 57. Qa7 {[%clk 0:00:11]} 1-0


[Site "https://www.chess.com"]

[Event "Titled Tuesday Blitz January 10 Early 2023"]
[White "Levitan, Caleb Levi"]
[Black "Fayzullaev, Akmal"]
[WhiteFideId "14332620"]
[BlackFideId "14200554"]
[WhiteElo "2129"]
[BlackElo "2391"]
[Result "1-0"]
[Round "07"]
[TimeControl "180+2"]
[Date "2023.01.10"]
[WhiteClock "0:00:11"]
[BlackClock "0:00:17"]

1. e4 {[%clk 0:03:00]}  e5 {[%clk 0:02:57]} 2. Nf3 {[%clk 0:02:59]}  Nc6 {[%clk 0:02:57]} 3. Bb5 {[%clk 0:02:59]}  a6 {[%clk 0:02:55]} 4. Ba4 {[%clk 0:02:59]}  Nf6 {[%clk 0:02:55]} 5. Qe2 {[%clk 0:03:00]}  b5 {[%clk 0:02:51]} 6. Bb3 {[%clk 0:02:59]}  Be7 {[%clk 0:02:48]} 7. d3 {[%clk 0:02:51]}  d6 {[%clk 0:02:47]} 8. c3 {[%clk 0:02:50]}  O-O {[%clk 0:02:43]} 9. Nbd2 {[%clk 0:02:48]}  Bb7 {[%clk 0:02:30]} 10. Nf1 {[%clk 0:02:47]}  Na5 {[%clk 0:02:29]} 11. Bc2 {[%clk 0:02:46]}  c5 {[%clk 0:02:29]} 12. Ng3 {[%clk 0:02:27]}  g6 {[%clk 0:02:28]} 13. O-O {[%clk 0:02:24]}  Qc7 {[%clk 0:02:22]} 14. Ng5 {[%clk 0:02:09]}  d5 {[%clk 0:02:10]} 15. f4 {[%clk 0:01:54]}  Nc6 {[%clk 0:02:04]} 16. f5 {[%clk 0:01:44]}  h6 {[%clk 0:01:37]} 17. Nh3 {[%clk 0:01:23]}  g5 {[%clk 0:01:35]} 18. Nh5 {[%clk 0:01:19]}  dxe4 {[%clk 0:01:02]} 19. Nxf6+ {[%clk 0:01:01]}  Bxf6 {[%clk 0:01:01]} 20. dxe4 {[%clk 0:01:01]}  Ne7 {[%clk 0:00:33]} 21. Qh5 {[%clk 0:00:58]}  Kg7 {[%clk 0:00:33]} 22. Nf2 {[%clk 0:00:23]}  Ng8 {[%clk 0:00:32]} 23. h4 {[%clk 0:00:18]}  Qe7 {[%clk 0:00:28]} 24. Ng4 {[%clk 0:00:18]}  Rad8 {[%clk 0:00:25]} 25. hxg5 {[%clk 0:00:18]}  hxg5 {[%clk 0:00:22]} 26. Be3 {[%clk 0:00:16]}  c4 {[%clk 0:00:17]} 27. Nxf6 {[%clk 0:00:16]}  Nxf6 {[%clk 0:00:17]} 28. Qxg5+ {[%clk 0:00:16]}  Kh8 {[%clk 0:00:17]} 29. Qh6+ {[%clk 0:00:15]}  Nh7 {[%clk 0:00:17]} 30. Rf3 {[%clk 0:00:13]}  f6 {[%clk 0:00:16]} 31. Rh3 {[%clk 0:00:13]}  Rf7 {[%clk 0:00:15]} 32. Kf2 {[%clk 0:00:11]}  Rg8 {[%clk 0:00:16]} 33. Rah1 {[%clk 0:00:09]}  Rfg7 {[%clk 0:00:12]} 34. g3 {[%clk 0:00:07]}  Rf7 {[%clk 0:00:10]} 35. Bd1 {[%clk 0:00:05]}  Rgg7 {[%clk 0:00:10]} 36. Bh5 {[%clk 0:00:05]}  Bxe4 {[%clk 0:00:10]} 37. Bxf7 {[%clk 0:00:05]}  Bxh1 {[%clk 0:00:10]} 38. Bg6 {[%clk 0:00:04]}  Bd5 {[%clk 0:00:09]} 39. Qxh7+ {[%clk 0:00:04]}  Rxh7 {[%clk 0:00:08]} 40. Rxh7+ {[%clk 0:00:05]}  Qxh7 {[%clk 0:00:09]} 41. Bxh7 {[%clk 0:00:06]}  Kxh7 {[%clk 0:00:10]} 42. g4 {[%clk 0:00:07]}  Be4 {[%clk 0:00:09]} 43. g5 {[%clk 0:00:07]}  Bxf5 {[%clk 0:00:07]} 44. gxf6 {[%clk 0:00:07]}  Kg6 {[%clk 0:00:08]} 45. Bg5 {[%clk 0:00:06]}  Be6 {[%clk 0:00:06]} 46. Bh4 {[%clk 0:00:05]}  Kh5 {[%clk 0:00:06]} 47. Bg3 {[%clk 0:00:05]}  e4 {[%clk 0:00:04]} 48. Ke3 {[%clk 0:00:05]}  Bd5 {[%clk 0:00:03]} 49. Kd4 {[%clk 0:00:05]}  Kg6 {[%clk 0:00:01]} 50. Kxd5 {[%clk 0:00:05]}  e3 {[%clk 0:00:01]} 51. Ke4 {[%clk 0:00:04]}  Kxf6 {[%clk 0:00:02]} 52. Kxe3 {[%clk 0:00:04]}  Ke6 {[%clk 0:00:02]} 53. Kd4 {[%clk 0:00:05]}  Kd7 {[%clk 0:00:03]} 54. Kc5 {[%clk 0:00:05]}  Kc8 {[%clk 0:00:02]} 55. Kb6 {[%clk 0:00:06]}  b4 {[%clk 0:00:03]} 56. cxb4 {[%clk 0:00:06]}  a5 {[%clk 0:00:02]} 57. bxa5 {[%clk 0:00:06]}  Kd7 {[%clk 0:00:03]} 58. a6 {[%clk 0:00:06]}  Ke6 {[%clk 0:00:04]} 59. a7 {[%clk 0:00:06]}  Kd5 {[%clk 0:00:05]} 60. a8=Q+ {[%clk 0:00:06]}  Kd4 {[%clk 0:00:06]} 61. Bf2+ {[%clk 0:00:06]}  Kd3 {[%clk 0:00:06]} 62. Qf3+ {[%clk 0:00:07]}  Kc2 {[%clk 0:00:07]} 63. Qe2+ {[%clk 0:00:07]}  Kb1 {[%clk 0:00:08]} 64. b3 {[%clk 0:00:06]}  c3 {[%clk 0:00:07]} 65. Qd3+ {[%clk 0:00:04]}  c2 {[%clk 0:00:08]} 66. Qxc2+ {[%clk 0:00:05]}  Kxc2 {[%clk 0:00:09]} 67. a4 {[%clk 0:00:06]}  Kb2 {[%clk 0:00:10]} 68. a5 {[%clk 0:00:07]}  Kxb3 {[%clk 0:00:10]} 69. a6 {[%clk 0:00:08]}  Kb4 {[%clk 0:00:11]} 70. a7 {[%clk 0:00:09]}  Kb3 {[%clk 0:00:12]} 71. a8=Q {[%clk 0:00:09]}  Kc3 {[%clk 0:00:13]} 72. Qa5+ {[%clk 0:00:10]}  Kc2 {[%clk 0:00:14]} 73. Qe5 {[%clk 0:00:11]}  Kd3 {[%clk 0:00:15]} 74. Qe3+ {[%clk 0:00:11]}  Kc2 {[%clk 0:00:16]} 75. Be1 {[%clk 0:00:11]}  Kd1 {[%clk 0:00:17]} 76. Qd2# {[%clk 0:00:11]} 1-0


[Site "https://www.chess.com"]

[Event "Titled Tuesday Blitz January 10 Early 2023"]
[White "Buksa, Nataliya"]
[Black "Real_taiatai"]
[WhiteFideId "14123622"]
[WhiteElo "2406"]
[BlackElo "2318"]
[Result "1-0"]
[Round "07"]
[TimeControl "180+2"]
[Date "2023.01.10"]
[WhiteClock "0:01:13"]
[BlackClock "0:00:10"]

1. d4 {[%clk 0:03:00]}  Nf6 {[%clk 0:02:58]} 2. Nc3 {[%clk 0:03:01]}  g6 {[%clk 0:02:58]} 3. e4 {[%clk 0:03:00]}  d6 {[%clk 0:02:58]} 4. Bg5 {[%clk 0:03:01]}  Bg7 {[%clk 0:02:58]} 5. e5 {[%clk 0:03:02]}  Nfd7 {[%clk 0:02:56]} 6. f4 {[%clk 0:03:01]}  h6 {[%clk 0:02:49]} 7. Bh4 {[%clk 0:03:00]}  O-O {[%clk 0:02:43]} 8. Nf3 {[%clk 0:03:00]}  Re8 {[%clk 0:02:24]} 9. Bc4 {[%clk 0:02:58]}  c5 {[%clk 0:02:23]} 10. e6 {[%clk 0:02:54]}  fxe6 {[%clk 0:02:21]} 11. Bxe6+ {[%clk 0:02:54]}  Kh7 {[%clk 0:02:20]} 12. d5 {[%clk 0:02:50]}  Nf6 {[%clk 0:02:17]} 13. Qd3 {[%clk 0:02:32]}  Bxe6 {[%clk 0:02:16]} 14. dxe6 {[%clk 0:02:32]}  Qc8 {[%clk 0:02:11]} 15. f5 {[%clk 0:02:31]}  Nc6 {[%clk 0:02:05]} 16. O-O-O {[%clk 0:02:27]}  Kg8 {[%clk 0:01:57]} 17. Rhe1 {[%clk 0:02:25]}  Nb4 {[%clk 0:01:32]} 18. Qd2 {[%clk 0:02:17]}  b5 {[%clk 0:01:24]} 19. fxg6 {[%clk 0:02:16]}  a5 {[%clk 0:01:18]} 20. Bxf6 {[%clk 0:02:15]}  exf6 {[%clk 0:01:16]} 21. Qxd6 {[%clk 0:02:13]}  Ra7 {[%clk 0:00:55]} 22. e7 {[%clk 0:01:57]}  Qf5 {[%clk 0:00:21]} 23. Rd2 {[%clk 0:01:56]}  h5 {[%clk 0:00:14]} 24. Qd8 {[%clk 0:01:55]}  Rxe7 {[%clk 0:00:12]} 25. Rxe7 {[%clk 0:01:36]}  Rxd8 {[%clk 0:00:09]} 26. Rxd8+ {[%clk 0:01:35]}  Bf8 {[%clk 0:00:10]} 27. Ne4 {[%clk 0:01:33]}  Qf4+ {[%clk 0:00:09]} 28. Kb1 {[%clk 0:01:26]}  Nc6 {[%clk 0:00:08]} 29. Rxf8+ {[%clk 0:01:14]}  Kxf8 {[%clk 0:00:08]} 30. Rf7+ {[%clk 0:01:15]}  Ke8 {[%clk 0:00:08]} 31. Nxf6+ {[%clk 0:01:14]}  Kd8 {[%clk 0:00:09]} 32. g7 {[%clk 0:01:15]}  Ne7 {[%clk 0:00:09]} 33. Rxe7 {[%clk 0:01:15]}  Kxe7 {[%clk 0:00:10]} 34. Nd5+ {[%clk 0:01:13]} 1-0


[Site "https://www.chess.com"]

[Event "Titled Tuesday Blitz January 10 Early 2023"]
[White "Lacasa Diaz, Jose Antonio"]
[Black "Musovic, Armin"]
[WhiteFideId "2203375"]
[BlackFideId "939935"]
[WhiteElo "2359"]
[BlackElo "2261"]
[Result "1/2-1/2"]
[Round "07"]
[TimeControl "180+2"]
[Date "2023.01.10"]
[WhiteClock "0:00:18"]
[BlackClock "0:00:14"]

1. e4 {[%clk 0:02:50]}  c6 {[%clk 0:03:00]} 2. d4 {[%clk 0:02:49]}  d5 {[%clk 0:03:00]} 3. e5 {[%clk 0:02:49]}  c5 {[%clk 0:03:01]} 4. c4 {[%clk 0:02:45]}  Nc6 {[%clk 0:03:01]} 5. Nf3 {[%clk 0:02:42]}  cxd4 {[%clk 0:03:01]} 6. Nxd4 {[%clk 0:02:41]}  e6 {[%clk 0:03:02]} 7. Nc3 {[%clk 0:02:36]}  Bb4 {[%clk 0:03:02]} 8. Nxc6 {[%clk 0:02:20]}  bxc6 {[%clk 0:03:03]} 9. cxd5 {[%clk 0:02:16]}  Qxd5 {[%clk 0:03:04]} 10. Qxd5 {[%clk 0:02:08]}  exd5 {[%clk 0:03:01]} 11. Bd2 {[%clk 0:02:08]}  Ne7 {[%clk 0:03:00]} 12. Bd3 {[%clk 0:02:02]}  O-O {[%clk 0:02:55]} 13. a3 {[%clk 0:01:58]}  Bf5 {[%clk 0:02:46]} 14. Bxf5 {[%clk 0:01:51]}  Bxc3 {[%clk 0:02:46]} 15. Bxh7+ {[%clk 0:01:49]}  Kxh7 {[%clk 0:02:45]} 16. Bxc3 {[%clk 0:01:49]}  c5 {[%clk 0:02:41]} 17. O-O {[%clk 0:01:46]}  Rfe8 {[%clk 0:02:31]} 18. f4 {[%clk 0:01:39]}  d4 {[%clk 0:02:28]} 19. Bd2 {[%clk 0:01:38]}  c4 {[%clk 0:02:23]} 20. Rac1 {[%clk 0:01:38]}  Rac8 {[%clk 0:02:22]} 21. Rfd1 {[%clk 0:01:35]}  Nd5 {[%clk 0:02:13]} 22. g3 {[%clk 0:01:31]}  f6 {[%clk 0:02:07]} 23. exf6 {[%clk 0:01:31]}  gxf6 {[%clk 0:02:08]} 24. Kf2 {[%clk 0:01:26]}  f5 {[%clk 0:02:02]} 25. Re1 {[%clk 0:01:20]}  Rxe1 {[%clk 0:02:00]} 26. Rxe1 {[%clk 0:01:16]}  c3 {[%clk 0:01:59]} 27. bxc3 {[%clk 0:01:16]}  dxc3 {[%clk 0:01:58]} 28. Bc1 {[%clk 0:01:17]}  c2 {[%clk 0:01:52]} 29. Re5 {[%clk 0:01:14]}  Nc3 {[%clk 0:01:40]} 30. Ke3 {[%clk 0:01:12]}  Na2 {[%clk 0:01:14]} 31. Kd2 {[%clk 0:01:10]}  Rd8+ {[%clk 0:01:14]} 32. Kxc2 {[%clk 0:01:10]}  Rc8+ {[%clk 0:01:15]} 33. Kb2 {[%clk 0:01:07]}  Nxc1 {[%clk 0:01:15]} 34. Rxf5 {[%clk 0:01:07]}  Nd3+ {[%clk 0:01:15]} 35. Kb3 {[%clk 0:01:05]}  Kg6 {[%clk 0:01:04]} 36. Rd5 {[%clk 0:00:57]}  Nc5+ {[%clk 0:00:50]} 37. Kb4 {[%clk 0:00:54]}  Ne4 {[%clk 0:00:48]} 38. Re5 {[%clk 0:00:49]}  Rb8+ {[%clk 0:00:41]} 39. Ka5 {[%clk 0:00:39]}  Nf2 {[%clk 0:00:39]} 40. Ka6 {[%clk 0:00:36]}  Nd3 {[%clk 0:00:31]} 41. Rg5+ {[%clk 0:00:35]}  Kf6 {[%clk 0:00:31]} 42. Kxa7 {[%clk 0:00:36]}  Rb3 {[%clk 0:00:29]} 43. Ra5 {[%clk 0:00:32]}  Rb2 {[%clk 0:00:29]} 44. h4 {[%clk 0:00:30]}  Rg2 {[%clk 0:00:23]} 45. Rg5 {[%clk 0:00:30]}  Ra2 {[%clk 0:00:22]} 46. Ra5 {[%clk 0:00:29]}  Rg2 {[%clk 0:00:22]} 47. Rg5 {[%clk 0:00:29]}  Ra2 {[%clk 0:00:21]} 48. h5 {[%clk 0:00:24]}  Rxa3+ {[%clk 0:00:21]} 49. Kb6 {[%clk 0:00:25]}  Nf2 {[%clk 0:00:19]} 50. g4 {[%clk 0:00:23]}  Rh3 {[%clk 0:00:12]} 51. Rg6+ {[%clk 0:00:21]}  Kf7 {[%clk 0:00:12]} 52. f5 {[%clk 0:00:20]}  Nxg4 {[%clk 0:00:12]} 53. Rxg4 {[%clk 0:00:18]}  Rxh5 {[%clk 0:00:12]} 54. Rf4 {[%clk 0:00:18]}  Kf6 {[%clk 0:00:12]} 55. Kc5 {[%clk 0:00:18]}  Rxf5+ {[%clk 0:00:13]} 56. Rxf5+ {[%clk 0:00:18]}  Kxf5 {[%clk 0:00:14]} 1/2-1/2


[Site "https://www.chess.com"]

[Event "Titled Tuesday Blitz January 10 Early 2023"]
[White "Defend, Balint"]
[Black "Fabris, Alberto"]
[WhiteFideId "17004853"]
[BlackFideId "801348"]
[WhiteElo "1673"]
[BlackElo "2230"]
[Result "1-0"]
[Round "07"]
[TimeControl "180+2"]
[Date "2023.01.10"]
[WhiteClock "0:00:18"]
[BlackClock "0:00:02"]

1. e4 {[%clk 0:03:00]}  c5 {[%clk 0:02:59]} 2. Nf3 {[%clk 0:03:01]}  d6 {[%clk 0:02:59]} 3. c3 {[%clk 0:03:00]}  Nf6 {[%clk 0:02:59]} 4. h3 {[%clk 0:03:01]}  g6 {[%clk 0:02:55]} 5. Bd3 {[%clk 0:03:00]}  Bg7 {[%clk 0:02:55]} 6. Bc2 {[%clk 0:03:01]}  Nc6 {[%clk 0:02:53]} 7. d4 {[%clk 0:03:00]}  cxd4 {[%clk 0:02:53]} 8. cxd4 {[%clk 0:03:00]}  O-O {[%clk 0:02:48]} 9. O-O {[%clk 0:03:00]}  Nb4 {[%clk 0:02:46]} 10. Bb3 {[%clk 0:02:59]}  d5 {[%clk 0:02:31]} 11. e5 {[%clk 0:02:57]}  Ne4 {[%clk 0:02:30]} 12. Nc3 {[%clk 0:02:57]}  Nxc3 {[%clk 0:02:29]} 13. bxc3 {[%clk 0:02:58]}  Nc6 {[%clk 0:02:28]} 14. Bf4 {[%clk 0:02:57]}  Na5 {[%clk 0:02:26]} 15. Bc2 {[%clk 0:02:57]}  Nc4 {[%clk 0:02:25]} 16. Qc1 {[%clk 0:02:55]}  Qa5 {[%clk 0:02:19]} 17. Bd3 {[%clk 0:02:53]}  b5 {[%clk 0:02:09]} 18. h4 {[%clk 0:02:43]}  Qa3 {[%clk 0:01:59]} 19. Qe1 {[%clk 0:02:26]}  a5 {[%clk 0:01:54]} 20. h5 {[%clk 0:02:25]}  b4 {[%clk 0:01:42]} 21. Rc1 {[%clk 0:02:10]}  bxc3 {[%clk 0:01:37]} 22. Rxc3 {[%clk 0:02:08]}  Qxa2 {[%clk 0:01:37]} 23. Bc2 {[%clk 0:01:42]}  a4 {[%clk 0:01:32]} 24. Bc1 {[%clk 0:01:29]}  Qa1 {[%clk 0:01:11]} 25. Ng5 {[%clk 0:01:27]}  a3 {[%clk 0:01:01]} 26. Rg3 {[%clk 0:01:23]}  Qxd4 {[%clk 0:00:57]} 27. Nxh7 {[%clk 0:01:17]}  Qxe5 {[%clk 0:00:53]} 28. Qd1 {[%clk 0:00:50]}  Bf5 {[%clk 0:00:40]} 29. Nxf8 {[%clk 0:00:47]}  Kxf8 {[%clk 0:00:34]} 30. hxg6 {[%clk 0:00:45]}  fxg6 {[%clk 0:00:33]} 31. Bxf5 {[%clk 0:00:42]}  Qxf5 {[%clk 0:00:31]} 32. Rf3 {[%clk 0:00:41]}  a2 {[%clk 0:00:28]} 33. Rxf5+ {[%clk 0:00:41]}  gxf5 {[%clk 0:00:28]} 34. Qxd5 {[%clk 0:00:37]}  a1=Q {[%clk 0:00:25]} 35. Bb2 {[%clk 0:00:32]}  Qa4 {[%clk 0:00:08]} 36. Qxf5+ {[%clk 0:00:30]}  Kg8 {[%clk 0:00:08]} 37. Qe6+ {[%clk 0:00:26]}  Kf8 {[%clk 0:00:05]} 38. Bxg7+ {[%clk 0:00:24]}  Kxg7 {[%clk 0:00:05]} 39. Qxe7+ {[%clk 0:00:24]}  Kg6 {[%clk 0:00:05]} 40. Qe6+ {[%clk 0:00:24]}  Kg7 {[%clk 0:00:05]} 41. Qg4+ {[%clk 0:00:23]}  Kf6 {[%clk 0:00:04]} 42. Re1 {[%clk 0:00:22]}  Qc6 {[%clk 0:00:02]} 43. Qd4+ {[%clk 0:00:18]} 1-0


[Site "https://www.chess.com"]

[Event "Titled Tuesday Blitz January 10 Early 2023"]
[White "surrenderPLS"]
[Black "Larina, Maria"]
[BlackFideId "24113182"]
[WhiteElo "2533"]
[BlackElo "1948"]
[Result "1-0"]
[Round "07"]
[TimeControl "180+2"]
[Date "2023.01.10"]
[WhiteClock "0:01:41"]
[BlackClock "0:00:52"]

1. e4 {[%clk 0:03:00]}  c6 {[%clk 0:02:59]} 2. d4 {[%clk 0:03:00]}  d5 {[%clk 0:03:00]} 3. e5 {[%clk 0:03:00]}  c5 {[%clk 0:03:00]} 4. Nf3 {[%clk 0:02:59]}  Nc6 {[%clk 0:03:00]} 5. dxc5 {[%clk 0:02:59]}  Bg4 {[%clk 0:03:01]} 6. c3 {[%clk 0:02:59]}  e6 {[%clk 0:02:58]} 7. Be3 {[%clk 0:02:59]}  Bxf3 {[%clk 0:02:46]} 8. Qxf3 {[%clk 0:02:57]}  Nxe5 {[%clk 0:02:46]} 9. Qg3 {[%clk 0:02:56]}  Nc6 {[%clk 0:02:46]} 10. Nd2 {[%clk 0:02:52]}  Nf6 {[%clk 0:02:45]} 11. b4 {[%clk 0:02:50]}  d4 {[%clk 0:02:27]} 12. cxd4 {[%clk 0:02:45]}  Nxd4 {[%clk 0:02:27]} 13. O-O-O {[%clk 0:02:36]}  Nf5 {[%clk 0:02:16]} 14. Bb5+ {[%clk 0:02:35]}  Nd7 {[%clk 0:02:13]} 15. Qf3 {[%clk 0:02:29]}  Nxe3 {[%clk 0:02:11]} 16. fxe3 {[%clk 0:02:27]}  Qc7 {[%clk 0:02:07]} 17. Ne4 {[%clk 0:02:04]}  O-O-O {[%clk 0:02:02]} 18. Qxf7 {[%clk 0:01:58]}  a6 {[%clk 0:01:15]} 19. Bxd7+ {[%clk 0:01:55]}  Rxd7 {[%clk 0:01:16]} 20. Qxe6 {[%clk 0:01:53]}  Be7 {[%clk 0:01:04]} 21. Rd2 {[%clk 0:01:47]}  Rd8 {[%clk 0:01:03]} 22. Rhd1 {[%clk 0:01:47]}  b6 {[%clk 0:00:52]} 23. c6 {[%clk 0:01:41]} 1-0


[Site "https://www.chess.com"]

[Event "Titled Tuesday Blitz January 10 Early 2023"]
[White "Nogerbek, Kazybek"]
[Black "Szyszylo, Rafal"]
[WhiteFideId "13710427"]
[BlackFideId "1109626"]
[WhiteElo "2474"]
[BlackElo "2091"]
[Result "1-0"]
[Round "07"]
[TimeControl "180+2"]
[Date "2023.01.10"]
[WhiteClock "0:00:48"]
[BlackClock "0:00:05"]

1. d4 {[%clk 0:03:00]}  g6 {[%clk 0:02:57]} 2. e4 {[%clk 0:03:00]}  d6 {[%clk 0:02:55]} 3. Nf3 {[%clk 0:02:59]}  Nf6 {[%clk 0:02:55]} 4. Nc3 {[%clk 0:02:51]}  Bg7 {[%clk 0:02:55]} 5. Bc4 {[%clk 0:02:51]}  O-O {[%clk 0:02:54]} 6. O-O {[%clk 0:02:51]}  Bg4 {[%clk 0:02:55]} 7. h3 {[%clk 0:02:48]}  Bxf3 {[%clk 0:02:55]} 8. Qxf3 {[%clk 0:02:49]}  Nc6 {[%clk 0:02:55]} 9. Be3 {[%clk 0:02:48]}  e5 {[%clk 0:02:55]} 10. dxe5 {[%clk 0:02:47]}  Nxe5 {[%clk 0:02:55]} 11. Qe2 {[%clk 0:02:48]}  Nxc4 {[%clk 0:02:56]} 12. Qxc4 {[%clk 0:02:49]}  Re8 {[%clk 0:02:56]} 13. Rfe1 {[%clk 0:02:49]}  c6 {[%clk 0:02:49]} 14. Rad1 {[%clk 0:02:48]}  Qc7 {[%clk 0:02:47]} 15. Nb5 {[%clk 0:02:46]}  Qa5 {[%clk 0:02:39]} 16. Nxd6 {[%clk 0:02:46]}  Re7 {[%clk 0:02:34]} 17. Bc5 {[%clk 0:02:38]}  b5 {[%clk 0:02:31]} 18. Qb3 {[%clk 0:02:35]}  Rd8 {[%clk 0:02:09]} 19. f3 {[%clk 0:02:08]}  Nd7 {[%clk 0:01:56]} 20. Nb7 {[%clk 0:02:02]}  Nxc5 {[%clk 0:01:55]} 21. Nxa5 {[%clk 0:01:45]}  Rxd1 {[%clk 0:01:54]} 22. Rxd1 {[%clk 0:01:46]}  Nxb3 {[%clk 0:01:54]} 23. Rd8+ {[%clk 0:01:45]}  Bf8 {[%clk 0:01:54]} 24. axb3 {[%clk 0:01:45]}  Kg7 {[%clk 0:01:54]} 25. Nxc6 {[%clk 0:01:43]}  Rc7 {[%clk 0:01:55]} 26. Nd4 {[%clk 0:01:43]}  Bc5 {[%clk 0:01:53]} 27. c3 {[%clk 0:01:44]}  b4 {[%clk 0:01:52]} 28. Kf1 {[%clk 0:01:43]}  bxc3 {[%clk 0:01:52]} 29. bxc3 {[%clk 0:01:43]}  Be7 {[%clk 0:01:16]} 30. Re8 {[%clk 0:01:43]}  Bf6 {[%clk 0:01:12]} 31. e5 {[%clk 0:01:43]}  Bg5 {[%clk 0:01:02]} 32. c4 {[%clk 0:01:43]}  Be3 {[%clk 0:00:56]} 33. Nb5 {[%clk 0:01:42]}  Rb7 {[%clk 0:00:52]} 34. Ke2 {[%clk 0:01:38]}  Bg1 {[%clk 0:00:50]} 35. f4 {[%clk 0:01:12]}  a6 {[%clk 0:00:50]} 36. Nd6 {[%clk 0:01:13]}  Rb4 {[%clk 0:00:50]} 37. Re7 {[%clk 0:01:13]}  Rxb3 {[%clk 0:00:49]} 38. Rxf7+ {[%clk 0:01:12]}  Kg8 {[%clk 0:00:46]} 39. Kd2 {[%clk 0:01:05]}  Be3+ {[%clk 0:00:17]} 40. Kc2 {[%clk 0:01:04]}  Ra3 {[%clk 0:00:17]} 41. e6 {[%clk 0:01:01]}  Ra2+ {[%clk 0:00:08]} 42. Kd3 {[%clk 0:00:58]}  Rd2+ {[%clk 0:00:08]} 43. Kxe3 {[%clk 0:00:48]}  Rxd6 {[%clk 0:00:08]} 44. Re7 {[%clk 0:00:47]}  Kf8 {[%clk 0:00:06]} 45. Rxh7 {[%clk 0:00:48]}  Rxe6+ {[%clk 0:00:06]} 46. Kd4 {[%clk 0:00:48]}  Re2 {[%clk 0:00:05]} 47. g4 {[%clk 0:00:49]}  Rf2 {[%clk 0:00:05]} 48. Ke5 {[%clk 0:00:49]}  Rc2 {[%clk 0:00:05]} 49. Kf6 {[%clk 0:00:48]}  Rxc4 {[%clk 0:00:05]} 50. Rh8# {[%clk 0:00:48]} 1-0


[Site "https://www.chess.com"]